Cogmind - Beta 13 @@@ ROGUE MODE // 2024.06.16 @ 19:15:03 Player: saltine Result: Destroyed by P-60 Hacker with Shock Rifle Performance ------------- Evolutions (4) 2000 Regions Visited (6) 1200 Robots Destroyed (172) 860 Value Destroyed (5357) 5357 Prototype IDs (6) 120 Alien Tech Used (0) 0 Bonus (294) 294 TOTAL SCORE: 9831 Bonus ------- High Alert Combat Kills 520 Follower Combat Kills 173 Friendly Fire -399 Cogmind --------- Core Integrity 0/850 Matter 135/300 Energy 59/100 System Corruption 4% Temperature Cool (0) Movement Core (50) Location -6/Factory Parts ------- > --- POWER (1) -------- (None) > --- PROPULSION (5) --- (None) > --- UTILITY (6) ------ Advanced Targeting Computer Launcher Guidance Computer > --- WEAPON (3) ------- Heavy Mace > --- INVENTORY (5) ---- Improved Signal Interpreter Improved Terrain Scanner Improved Datajack Chainsword Peak State ------------ > --- POWER ------------ Heavy Deuterium Engine > --- PROPULSION ------- Light Treads Medium Treads Medium Treads Armored Huge Wheel > --- UTILITY ---------- Advanced Heat Sink Improved Cooling System Huge Storage Unit Advanced Targeting Computer Hardened Medium Armor Plating > --- WEAPON ----------- Flak Gun Flak Cannon Heavy Rocket Launcher > --- INVENTORY -------- Light Deuterium Engine Light Deuterium Engine Light Treads Wheel Wheel Improved Signal Interpreter Improved Terrain Scanner Launcher Guidance Computer Long-range Tractor Beam Drone Bay Proton Cannon Proton Cannon Heavy Particle Cannon Flak Cannon Advanced Assault Cannon Heavy Rocket Launcher Improved Datajack Heavy Mace Chainsword [Rating: 55] Favorites ----------- Power Improved Ion Engine Engine Improved Ion Engine Power Core Light Nuclear Core Propulsion Light Treads Treads Light Treads Leg Aluminum Leg Wheel Wheel Utility Huge Storage Unit Device Advanced Heat Sink Storage Huge Storage Unit Processor Advanced Targeting Computer Hackware Hacking Suite Protection Hardened Medium Armor Plating Weapon Flak Cannon Energy Cannon Advanced Beam Cannon Ballistic Gun Assault Rifle Ballistic Cannon Flak Cannon Launcher Heavy Rocket Launcher Impact Weapon Heavy Mace Slashing Weapon Chainsword Build | -11 -10 -9 -8 -8 -7 -6 ------- Run | Yrd Mat Mat Mat Sto Fac Fac Slots Evolved 8 | . . 2 2 . 2 2 Power . | . . . . . . . Propulsion 3 | . . 2 1 . . . Utility 4 | . . . 1 . 1 2 Weapon 1 | . . . . . 1 . Parts Attached 119 | 6 9 22 16 18 13 35 Power 12 | 1 1 1 2 3 1 3 Engine 11 | 1 1 1 1 3 1 3 Core 1 | . . . 1 . . . Reactor . | . . . . . . . Propulsion 41 | 2 1 11 6 8 5 8 Treads 23 | 2 1 2 4 6 5 3 Leg 1 | . . 1 . . . . Wheel 17 | . . 8 2 2 . 5 Hover . | . . . . . . . Flight . | . . . . . . . Utility 24 | 1 4 1 4 3 2 9 Device 9 | . . . 2 3 . 4 Storage 3 | 1 2 . . . . . Processor 6 | . . 1 2 . 1 2 Hackware 1 | . . . . . 1 . Protection 5 | . 2 . . . . 3 Artifact . | . . . . . . . Weapon 42 | 2 3 9 4 4 5 15 Energy Gun . | . . . . . . . Energy Cannon 6 | . . 1 1 . . 4 Ballistic Gun 9 | 2 2 4 . . . 1 Ballistic Cannon 16 | . . 3 3 2 4 4 Launcher 9 | . 1 1 . 2 1 4 Special Weapon . | . . . . . . . Impact Weapon 1 | . . . . . . 1 Slashing Weapon 1 | . . . . . . 1 Piercing Weapon . | . . . . . . . Special Melee Weapon . | . . . . . . . Unidentified Prototypes 2 | . . 1 . . 1 . Parts Lost 67 | . 1 11 6 8 7 34 Power 8 | . . 1 2 1 1 3 Propulsion 27 | . . 5 3 6 4 9 Utility 13 | . . 1 . 1 1 10 Weapon 19 | . 1 4 1 . 1 12 Highest Loss Streak 19 | . 1 4 3 6 2 19 To Critical Strikes 1 | . . . . . . 1 Average Slot Usage (%) 91 | . 96 77 92 94 99 90 Engine 8 | . 14 11 8 5 6 5 Treads 26 | . 27 9 21 36 34 26 Wheel 6 | . . 14 16 6 2 2 Device 7 | . . . 9 11 10 12 Storage 9 | . 14 11 9 9 7 5 Processor 5 | . . 7 8 6 7 4 Hackware 1 | . . . . . 4 2 Protection 3 | . 11 . . . . 8 Energy Cannon 3 | . . 2 3 9 4 . Ballistic Gun 6 | . 27 12 . . . . Ballistic Cannon 11 | . . 6 14 8 17 17 Naked Turns . | . . . . . . . Heaviest Build 136 | 13 94 97 100 98 110 136 Greatest Support 116 | 40 40 40 80 100 116 116 Greatest Overweight (x) 32 | 3 4 32 9 9 10 8 Average Overweight (x) 3 | . 1 4 3 6 3 2 Largest Inventory Capacity 25 | 8 25 25 25 25 25 25 Average Capacity 24 | 7 23 25 25 25 25 24 Most Carried 25 | 4 17 25 25 25 25 25 Average Carried 21 | 2 12 21 24 24 23 21 Final Capacity 25 | 8 25 25 25 25 25 5 Final Carried 25 | 4 17 25 25 22 25 4 Class Distribution -------------------- 33% | Mutant 31% | Scavenger-Gunner 27% | Scavenger-Mutant 3% | Scavenger-Tank Dominant Class ---------------- Mutant | -10/Materials Mutant | -9/Materials Scavenger-Mutant | -8/Materials Scavenger-Mutant | -8/Storage Scavenger-Gunner | -7/Factory Scavenger-Gunner | -6/Factory Resources | -11 -10 -9 -8 -8 -7 -6 ----------- Run | Yrd Mat Mat Mat Sto Fac Fac Matter Collected 4051 | 178 188 770 797 434 467 1217 Remotely 277 | . . . . . . 277 Salvage Created 4805 | . 235 1004 848 730 452 1536 Parts 285 | . 23 59 47 44 15 97 Haulers Intercepted 6 | . . 2 2 1 1 . Recyclers Shooed 12 | . 1 1 3 . . 7 Parts Field Recycled . | . . . . . . . Retrieved Matter . | . . . . . . . Parts Self-Destructed . | . . . . . . . Prevented . | . . . . . . . Kills | -11 -10 -9 -8 -8 -7 -6 ------- Run | Yrd Mat Mat Mat Sto Fac Fac Combat Hostiles Destroyed 126 | . 10 23 22 20 15 36 Melee 3 | . . . . . . 3 Guns 24 | . 9 9 . . . 6 Cannons 78 | . . 12 21 13 13 19 AOE 19 | . 1 2 . 7 2 7 Classes Destroyed 16 | . 3 7 . 2 2 2 Worker 12 | . 1 2 . 1 . 8 Builder 12 | . . 1 . . . 11 Tunneler 1 | . . 1 . . . . Hauler 6 | . . 2 2 1 1 . Recycler 11 | . . 1 4 . . 6 Drone 1 | . . . . . . 1 Watcher 3 | . . 2 . . . 1 Swarmer 35 | . 6 3 8 3 . 15 Grunt 48 | . 4 14 9 8 7 6 Brawler 3 | . . . . 3 . . Duelist 2 | . . 1 . 1 . . Protector 1 | . . . . 1 . . Sentry 18 | . . 5 5 4 3 1 Specialist 2 | . . . . . . 2 Hunter 8 | . . . . . 1 7 Programmer 9 | . . . . . 4 5 Thug 1 | . . . . 1 . . Best Kill Streak 14 | . 3 9 9 6 4 14 Combat Bots Only 8 | . 3 7 7 6 4 8 Max Kills in Single Turn 8 | . 2 2 1 3 2 8 Gunslinging 1 | . 1 . . . . . Exploded 3 | . 1 2 . 3 2 3 Melee 1 | . . . . . . 1 Uniques/NPCs Destroyed . | . . . . . . . Combat | -11 -10 -9 -8 -8 -7 -6 -------- Run | Yrd Mat Mat Mat Sto Fac Fac Hostile Shots Fired 994 | . 61 156 127 114 158 378 Missed 323 | . 15 48 34 36 59 131 Damage Taken 9948 | . 530 1344 1235 1343 1033 4463 Core 1798 | . 56 296 289 232 75 850 Absorbed by Shields . | . . . . . . . Regen/Repaired (Parts) 37 | . . 37 . . . . Core Remaining (%) 59 | 100 77 26 . 5 89 . Volleys Fired 322 | . 33 74 62 45 35 73 Largest 3 | . 2 2 2 2 3 3 Hottest 172 | . 50 112 116 116 160 172 Shots Fired 696 | . 62 138 125 87 103 181 Gun 164 | . 60 82 1 . . 21 Cannon 511 | . . 52 124 82 99 154 Launcher 21 | . 2 4 . 5 4 6 Special . | . . . . . . . Kinetic 562 | . 60 109 116 37 75 165 Thermal 107 | . . 25 9 45 24 4 Explosive 21 | . 2 4 . 5 4 6 Electromagnetic 6 | . . . . . . 6 Robot Hit Streak 13 | . 9 10 9 13 7 9 Robot Miss Streak 26 | . 3 6 3 6 6 26 Penetration Max . | . . . . . . . Secondary Targets 2 | . 1 1 . . . . Max Gunslinging Chain 1 | . 1 1 . . . . Shots Hit Robots 458 | . 37 90 70 55 67 139 Core Hits 436 | . 17 64 37 42 56 220 Critical Kills 1 | . . . 1 . . . Critical Parts Destroyed . | . . . . . . . Critical Strikes 10 | . . . 7 . . 3 Meltdown 1 | . . . 1 . . . Blast 8 | . . . 6 . . 2 Sever 1 | . . . . . . 1 Melee Attacks 15 | . . . . . . 15 Impact 1 | . . . . . . 1 Slashing 14 | . . . . . . 14 Piercing . | . . . . . . . Sneak Attacks . | . . . . . . . Combat Hostiles . | . . . . . . . Follow-up Attacks . | . . . . . . . Damage Inflicted 15085 | . 562 1849 2175 2380 1903 6216 Guns 1502 | . 501 615 . . . 386 Cannons 8431 | . . 881 2081 1291 1433 2745 Explosions 4626 | . 38 312 35 1068 424 2749 Melee 277 | . . . . . . 277 Ramming 249 | . 23 41 59 21 46 59 Kinetic 8256 | . 501 1059 1978 642 1113 2963 Thermal 2282 | . . 437 103 649 320 773 Explosive 3868 | . 38 312 . 1068 424 2026 Electromagnetic 153 | . . . 35 . . 118 Impact . | . . . . . . . Slashing 277 | . . . . . . 277 Piercing . | . . . . . . . Highest Corruption 4 | . . . 4 4 3 4 Average Corruption 3 | . . . 3 4 2 2 Corruption Purged . | . . . . . . . Corruption Blocked . | . . . . . . . Effects 31 | . . . 4 15 10 2 Message Errors 5 | . . . 1 2 2 . Matter Fused 4 | . . . . 2 2 . Heat Flow Errors 4 | . . . . 3 1 . Energy Discharges 10 | . . . 2 5 2 1 Parts Rejected 1 | . . . . 1 . . Data Loss (minor) 4 | . . . . 1 3 . Data Loss (major) 1 | . . . . 1 . . Misfires 1 | . . . 1 . . . Weapon Failures 1 | . . . . . . 1 Overload Shots . | . . . . . . . Overflow Damage 365 | . 4 7 32 51 38 233 Projectiles 94 | . . . 32 41 14 7 Explosions 247 | . 4 7 . 10 . 226 Melee 24 | . . . . . 24 . Knockbacks 125 | . . 16 21 8 17 63 Impact 1 | . . . . 1 . . Kinetic 113 | . . 14 19 5 17 58 Secondary 11 | . . 2 2 2 . 5 Self-Inflicted Damage 625 | . 31 20 25 158 . 391 Shots 12 | . 1 . . 4 . 7 Rammed 28 | . 4 3 10 5 1 5 Targets Rammed 31 | . 4 3 10 5 1 8 Kicked . | . . . . . . . Crushed 3 | . . . . . . 3 Highest Temperature 434 | . 29 434 339 422 139 338 Average Temperature 103 | . 11 122 131 131 31 74 Received Heat Transfer 2673 | . 204 633 522 666 330 318 Effects 10 | . . 2 6 2 . . Shutdowns 3 | . . 1 2 . . . Energy Bleed 1 | . . . 1 . . . Interference 5 | . . 1 2 2 . . Damage (minor) 1 | . . . 1 . . . Siege Activations . | . . . . . . . Robots Corrupted 1 | . . . . . . 1 Combat Hostiles 1 | . . . . . . 1 Parts Fried . | . . . . . . . Impact Corruptions 2 | . . . . . 2 . Robots Melted 1 | . . . 1 . . . Combat Hostiles 1 | . . . 1 . . . Parts Melted 3 | . . . 3 . . . Heat Transferred 3252 | . . 777 185 1129 555 606 Parts Sabotaged 2 | . . . . . . 2 Parts Stolen . | . . . . . . . Parts Stripped . | . . . . . . . Power Chain Reactions . | . . . . . . . Alert | -11 -10 -9 -8 -8 -7 -6 ------- Run | Yrd Mat Mat Mat Sto Fac Fac Peak Influence 764 | . 198 449 583 625 292 764 Initial 238 | . . 12 40 191 238 99 Average 230 | . 55 166 391 416 210 265 Maximum Alert Level 3 | . . 2 2 2 1 3 Low Security (%) 49 | 100 100 70 16 3 37 43 Level 1 32 | . . 27 18 39 62 37 Level 2 17 | . . 1 64 56 . 15 Level 3 . | . . . . . . 3 Level 4 . | . . . . . . . Level 5 . | . . . . . . . High Security . | . . . . . . . Max Security . | . . . . . . . Squads Dispatched 18 | . 2 1 2 3 5 5 Investigation 1 | . . 1 . . . . Extermination 5 | . . . . . 3 2 Reinforcement 10 | . 2 . 2 1 2 3 Assault 2 | . . . . 2 . . Garrison . | . . . . . . . Intercept . | . . . . . . . Searches Triggered . | . . . . . . . Construction Impeded 2 | . . . . . . 2 Haulers Reinforced 2 | . . . . . 1 1 Active Scanning Responses . | . . . . . . . Cargo Convoy Interrupts 1 | . . . . . . 1 Stealth | -11 -10 -9 -8 -8 -7 -6 --------- Run | Yrd Mat Mat Mat Sto Fac Fac Distress Signals 16 | . 1 4 3 6 . 2 Communications Jammed . | . . . . . . . Distress Signals . | . . . . . . . Times Spotted 200 | . 16 38 42 31 16 57 Peak Tracking Total 12 | . 5 6 7 9 4 12 Tactical Retreats 10 | . 1 1 7 1 . . Traps | -11 -10 -9 -8 -8 -7 -6 ------- Run | Yrd Mat Mat Mat Sto Fac Fac Traps Triggered 6 | . 1 1 4 . . . Indirectly . | . . . . . . . Trap Hack Attempts . | . . . . . . . Triggered . | . . . . . . . Disarmed . | . . . . . . . Reprogrammed . | . . . . . . . Reused . | . . . . . . . Traps Extracted . | . . . . . . . Installed . | . . . . . . . Triggered . | . . . . . . . Machines | -11 -10 -9 -8 -8 -7 -6 ---------- Run | Yrd Mat Mat Mat Sto Fac Fac Machines Disabled 15 | . 1 . 3 1 2 8 Max in Single Turn 5 | . 1 . 2 1 1 5 Machines Repaired . | . . . . . . . Machines Dismantled . | . . . . . . . Machines Sabotaged . | . . . . . . . Overloaded Fab Kills . | . . . . . . . Hacking | -11 -10 -9 -8 -8 -7 -6 --------- Run | Yrd Mat Mat Mat Sto Fac Fac Machines Accessed 24 | . 4 5 4 4 6 1 Terminals 21 | . 4 4 3 4 5 1 Fabricators . | . . . . . . . Repair Stations 2 | . . 1 . . 1 . Recycling Units 1 | . . . 1 . . . Scanalyzers . | . . . . . . . Garrison Access . | . . . . . . . Total Hacks 61 | . 14 17 8 9 12 1 Successful 24 | . 6 9 2 2 5 . Failed 37 | . 8 8 6 7 7 1 Catastrophic 13 | . . 4 3 1 4 1 Database Lockouts . | . . . . . . . Manual 30 | . 6 7 2 6 8 1 Terminals 55 | . 14 14 7 9 10 1 Fabricators . | . . . . . . . Repair Stations 5 | . . 3 . . 2 . Recycling Units 1 | . . . 1 . . . Scanalyzers . | . . . . . . . Garrison Access . | . . . . . . . Terminal Hacks 16 | . 5 5 2 2 2 . Robot Analysis 4 | . 1 2 1 . . . Prototype ID Bank 2 | . 1 . 1 . . . Open Door 1 | . . . . 1 . . Branch Access Points 1 | . . . . . 1 . Terminal Index 3 | . . 1 . 1 1 . Unreport Threat 1 | . . 1 . . . . Hauler Manifests 1 | . 1 . . . . . Zone Layout 3 | . 2 1 . . . . Fabricator Hacks . | . . . . . . . Repair Station Hacks 3 | . . 2 . . 1 . Scan Component 2 | . . 1 . . 1 . Repair 1 | . . 1 . . . . Recycling Unit Hacks . | . . . . . . . Scanalyzer . | . . . . . . . Garrison Access Hacks . | . . . . . . . Unauthorized Hacks 5 | . 1 2 . . 2 . Terminals 5 | . 1 2 . . 2 . Botnet 3 | . 1 1 . . 1 . Disrupt 1 | . . 1 . . . . Operators 1 | . . . . . 1 . Fabricators . | . . . . . . . Repair Stations . | . . . . . . . Recycling Units . | . . . . . . . Scanalyzers . | . . . . . . . Garrison Access . | . . . . . . . Data Cores Recovered . | . . . . . . . Used . | . . . . . . . Hacking Detections 23 | . 4 4 4 4 6 1 Full Trace Events 1 | . . 1 . . . . Feedback Events . | . . . . . . . Feedback Blocked . | . . . . . . . Robot Schematics Acquired . | . . . . . . . Robots Built . | . . . . . . . Authchips . | . . . . . . . Time . | . . . . . . . Total Robot Build Rating . | . . . . . . . Part Schematics Acquired . | . . . . . . . Parts Built . | . . . . . . . Authchips . | . . . . . . . Time . | . . . . . . . Total Part Build Rating . | . . . . . . . Parts Repaired 1 | . . 1 . . . . Time 26 | . . 26 . . . . Parts Recycled . | . . . . . . . Recycled Matter . | . . . . . . . Retrieved Matter . | . . . . . . . Retrieved Components . | . . . . . . . Parts Scanalyzed . | . . . . . . . Part Schematics Acquired . | . . . . . . . Parts Damaged . | . . . . . . . Bothacking | -11 -10 -9 -8 -8 -7 -6 ------------ Run | Yrd Mat Mat Mat Sto Fac Fac Used RIF Installer . | . . . . . . . Robots Hacked . | . . . . . . . Non-combat . | . . . . . . . Combat . | . . . . . . . Robot Hacks Applied . | . . . . . . . Relay Couplers Released . | . . . . . . . Fabnet Peak Effective % . | . . . . . . . Robots Rewired . | . . . . . . . Allies Hacked . | . . . . . . . Hacks Repelled . | . . . . . . . Allies | -11 -10 -9 -8 -8 -7 -6 -------- Run | Yrd Mat Mat Mat Sto Fac Fac Total Allies 2 | . . . . 2 . . Largest Group 2 | . . . . 2 . . Highest-Rated Group 62 | . . . . 62 . . Highest-Rated Ally 31 | . . . . 31 . . Total Orders . | . . . . . . . Ally Attacks 39 | . . . . 39 . . Total Damage 546 | . . . . 546 . . Kills 5 | . . . . 5 . . Allies Corrupted . | . . . . . . . Allies Melted . | . . . . . . . Intel | -11 -10 -9 -8 -8 -7 -6 ------- Run | Yrd Mat Mat Mat Sto Fac Fac Robot Analysis Total 4 | . 1 2 1 . . . Derelict Logs Recovered . | . . . . . . . Drone Launches 2 | . . . . . . 2 Drone Recoveries 1 | . . . . . . 1 Exploration | -11 -10 -9 -8 -8 -7 -6 ------------- Run | Yrd Mat Mat Mat Sto Fac Fac Turns Passed 7352 | 80 1263 1237 897 867 1673 1335 Spaces Moved 3011 | 42 391 527 444 326 831 450 Core 17 | 10 . 2 . . . 5 Treads 1421 | 32 391 41 14 74 563 306 Legs 1 | . . 1 . . . . Wheels 1572 | . . 483 430 252 268 139 Hover . | . . . . . . . Flight . | . . . . . . . Fastest Speed 50 | 50 160 125 116 160 160 50 Average Speed 198 | 161 288 177 147 203 182 223 Slowest Speed 1650 | 200 480 1650 240 240 240 240 Overloaded Moves . | . . . . . . . Propulsion Burnouts . | . . . . . . . Robots Hopped . | . . . . . . . Cave-ins Triggered . | . . . . . . . Exploration Rate (%) 41 | 5 94 58 36 57 24 18 Regions Visited 6 Branch Regions 1 Pre-discovered Areas . | . . . . . . . Known Exits Taken . | . . . . . . . Unknown Exits Taken 6 | 1 1 1 1 1 1 . Scrap Searched . | . . . . . . . Spaces Dug . | . . . . . . . Terrain Destroyed 245 | . 11 15 28 51 52 88 Melee . | . . . . . . . Projectile 65 | . . . 28 12 9 16 AOE 180 | . 11 15 . 39 43 72 Terrain Rammed . | . . . . . . . Walls Destroyed . | . . . . . . . Machines Disabled . | . . . . . . . Actions | -11 -10 -9 -8 -8 -7 -6 --------- Run | Yrd Mat Mat Mat Sto Fac Fac Total 3688 | 51 455 684 559 436 906 597 Wait 75 | . . 35 7 24 3 6 Move 3005 | 41 390 526 443 325 830 450 Hop . | . . . . . . . Pick Up 76 | 4 14 19 8 9 16 6 Fast Attach 43 | 6 6 12 11 5 2 1 Attach 58 | . . 9 5 7 8 29 Detach 11 | . 1 1 5 . 1 3 Swap 18 | . 3 1 . 6 3 5 Drop 34 | . 4 4 8 10 7 1 Fire 322 | . 33 74 62 45 35 73 Melee 15 | . . . . . . 15 Ram 20 | . . 3 9 5 . 3 Kick . | . . . . . . . Crush 11 | . 4 . 1 . 1 5 Escape Stasis . | . . . . . . . Rewire . | . . . . . . . Trap . | . . . . . . . Miscellaneous . | . . . . . . . Route ------- -11/Scrapyard -10/Materials (discovered 4 exits: *Mat x3 / [*Min]) -9/Materials (discovered 2 exits: *Mat / [*Min]) -8/Materials (discovered 2 exits: *Sto x2) -8/Storage -7/Factory (discovered 3 exits: *Fac / *Low x2) -6/Factory (discovered 1 exit: [*Fac]) History --------- Turn | Location | Event 2 | -11/Scrapyard | Met Revision 17 25 | -11/Scrapyard | Discovered new exit (range 14) 81 | -11/Scrapyard | Entered Materials 306 | -10/Materials | Build established: Mutant 402 | -10/Materials | Discovered new exit (range 3) 660 | -10/Materials | Discovered new exit (range 4) 988 | -10/Materials | Discovered new exit (range 14) 1265 | -10/Materials | Discovered new exit (range 13) 1344 | -10/Materials | Entered another Materials area 1344 | -9/Materials | Evolved 2 slots: Propulsion x2 1548 | -9/Materials | Lost 3 parts (2n1w) 1910 | -9/Materials | Destroyed 7 combat bots 1918 | -9/Materials | Core integrity fell below 50% 1923 | -9/Materials | Lost 4 parts (1p1n2w) 2148 | -9/Materials | Lost 3 parts (2n1w) 2304 | -9/Materials | Repaired Wheel 2361 | -9/Materials | Discovered new exit (range 16) 2549 | -9/Materials | Discovered new exit (range 15) 2581 | -9/Materials | Entered another Materials area 2581 | -8/Materials | Evolved 2 slots: Propulsion x1, Utility x1 2777 | -8/Materials | Destroyed 7 combat bots 2816 | -8/Materials | Lost 3 parts (1p2n) 3039 | -8/Materials | Build established: Scavenger-Mutant 3114 | -8/Materials | Discovered new exit (range 16) 3143 | -8/Materials | Discovered new exit (range 16) 3243 | -8/Materials | Core integrity fell below 50% 3478 | -8/Materials | Entered Storage 3625 | -8/Storage | Met a pair of Derelict thieves 4065 | -8/Storage | Core integrity fell below 20% 4118 | -8/Storage | Lost 6 parts (1p4n1u) 4328 | -8/Storage | Discovered new exit (range 9) 4345 | -8/Storage | Entered Factory 4345 | -7/Factory | Evolved 2 slots: Utility x1, Weapon x1 4636 | -7/Factory | Build established: Scavenger-Gunner 5180 | -7/Factory | Identified exit to Lower Caves 5513 | -7/Factory | Discovered new exit (range 15) 6018 | -7/Factory | Entered another Factory area 6018 | -6/Factory | Evolved 2 slots: Utility x2 6556 | -6/Factory | Lost 3 parts (2n1u) 6894 | -6/Factory | Discovered new exit (range 9) 7155 | -6/Factory | Lost 5 parts (1n3u1w) 7230 | -6/Factory | Lost 4 parts (2n1u1w) 7261 | -6/Factory | Core integrity fell below 50% 7296 | -6/Factory | Cargo convoy interrupted 7318 | -6/Factory | Core integrity fell below 20% 7353 | -6/Factory | Destroyed by P-60 Hacker with Shock Rifle Last Messages --------------- 07339_ K-01 Serf collects debris. 07340_ Proton Cannon destroyed. 07340_ U-05 Engineer lays Concrete. 07343_ K-01 Serf collects debris. 07344_ U-05 Engineer lays Concrete. 07345_ Proton Cannon destroyed. 07345_ G-50 Soldier suffers critical hit (Burn). 07346_ U-05 Engineer lays Concrete. 07346_ Flak Cannon destroyed. 07347_ U-05 Engineer lays Concrete. 07347_ K-01 Serf collects debris. 07347_ Lgt. Deuterium Engine destroyed. 07348_ U-05 Engineer lays Concrete. 07348_ Dropped Huge Storage Unit. 07349_ U-05 Engineer lays Concrete. 07350_ K-01 Serf collects debris. 07350_ Chain reaction triggered in Lgt. Deuterium Engine. 07350_ W-25 Informer destroyed. 07351_ U-05 Engineer lays Concrete. Map ----- +----------------------------------------------------+ | ????????????????????????? ???# #?? """ ??? | | ???????????????????????? ???# #??== ???? | | ????????????????????????? ???# #??== """ ???? | | ??????????????????????? ??## ### """ ?#?? | | ???????????????????#? [ ??## + """ #?? | | ???????????????????# ??## # #?? | | ???????????????? ### ##### #####+###### | | ??????????????? == | | ??????????????? == =! | | ?????????????? !=* | | ?????????????? %=u | | ?????????????? % | | ??????????????????# = p [ ####! ###+### | | ??????????????????# * %== % # ???? | | ??????????????????# u ![% * # ???? | | ??????????????????# =%![% # #??? | | ??????????????????# |% % # #??? | | ??????????????????# ! !# #??? | | ??????????????????# ! ! % # #??? | | ??????????????????# !k[% # #??? | | ??????????????????# *% = == ; #??? | | ??????????????????# * =! ###########??? | | ??????????????????# ####????????????? | | ????????????????? + !% #??????????????? | | ??????????????????# ##??????????????? | | ??????????????????# g @g = #???????????????? | | ??????????????????#####/### !%## #???????????????? | | ????????????????????? ? # !=## #???????????????? | | ???????????????????? ??? # #? #???????????????? | | ??????????????????# ??????/ #? #???????????????? | | ??????????????????#???????# #??#???????????????? | | ??????????????????????????#####??????????????????? | | ?????????????????????????????????????????????????? | | ?????????????????????????????????????????????????? | | ?????????????????????????????????????????????????? | | ?????????????????????????????????????????????????? | | ?????????????????????????????????????????????????? | | ?????????????????????????????????????????????????? | | ?????????????????????????????????????????????????? | | ?????????????????????????????????????????????????? | | ?????????????????????????????????????????????????? | | ?????????????????????????????????????????????????? | | ?????????????????????????????????????????????????? | | ?????????????????????????????????????????????????? | | ?????????????????????????????????????????????????? | | ?????????????????????????????????????????????????? | | ?????????????????????????????????????????????????? | | ?????????????????????????????????????????????????? | | ?????????????????????????????????????????????????? | | ?????????????????????????????????????????????????? | +----------------------------------------------------+ Best States ------------- Heat Dissipation 83 Energy Generation 18 Energy Capacity 310 Matter Stores 300 Matter Capacity 300 Sight Range 16 Terrain Scan Range 16 Terrain Scan Density 110 Armor Coverage 675 Evasion (%) 47 Targeting Accuracy 8 Launcher Accuracy 20 Recoil Reduction 5 Kinecelleration 30 Offensive Hacking 10 Item Schematics ----------------- None Robot Schematics ------------------ None Fabricated ------------ Nothing Alien Tech Used ----------------- None Achievements -------------- Omniscient Cartographer Challenges ------------ None Game ------ Seed RocketElectronNanosword Manual? 0 Play Time 01:16:59 Cumulative 40.9 hours Start 2024.06.15 @ 19:02:59 End 2024.06.16 @ 19:15:03 Sessions 6 Manual Loads 0 Difficulty Rogue Special Mode None Game No. 54 Rogue 54 Adventurer 0 Explorer 0 Win Type - Total 1 Types 1/0/0/0/0/0/0/0/0 Lore% 37 Gallery% 37 Achievement% 30 Wizard Run 0 Options --------- Layout 1 ASCII 0 Keyboard 0 Movement Arrows Keybinds 0 Fullscreen 1 Font 24/Smallcaps Map View 50x35 Zoom Use 0% Tactical HUD 1 Map Filters NONE Filters NONE Steam 1 RUN: 05e4038d-7700-4273-84c5-343a06d0135f